bitfinex-derivatives/quotes_ETHF0:USTF0_20241105
["timestamp","ask_amount","ask_price","bid_price","bid_amount"]
[1730810489827,3.6504,2446.9,2446.8,0.40884]
[1730810490926,7.7376,2446.9,2446.4,5.76065727]
[1730810491120,3.6504,2446.9,2446.8,0.40884]
[1730810491323,0.4426,2446.9,2446.8,0.40884]
[1730810492529,4.73620378,2447.0,2446.9,0.40882]
[1730810492728,5.16260378,2447.0,2446.9,0.40882]
[1730810493425,4.28980378,2447.0,2446.9,0.40882]
[1730810493627,4.71780378,2447.1,2446.7,6.78278727]
[1730810493831,3.74333086,2447.1,2447.0,0.4088]
[1730810494030,3.673,2447.2,2447.1,0.40878]
[1730810494031,4.20853086,2447.2,2447.1,0.40878]
[1730810494330,3.74333086,2447.3,2447.2,0.40877]
[1730810495326,3.74333086,2447.3,2447.0,0.8587]
[1730810495521,0.40877,2447.2,2447.1,0.40878]
[1730810495721,3.74333086,2447.3,2447.0,0.4282]
[1730810496040,4.15209086,2447.3,2447.2,0.40877]
[1730810496224,3.74333086,2447.3,2447.2,0.40877]
[1730810497133,46.30017086,2447.4,2447.3,0.40875]
[1730810497636,45.89143086,2447.4,2447.3,0.40875]
[1730810497933,45.89143086,2447.4,2447.0,0.4282]
[1730810498135,45.89143086,2447.4,2447.1,0.40877]
[1730810498327,0.40876,2447.3,2447.1,0.40877]
[1730810498636,0.40877,2447.2,2447.1,0.40877]
[1730810499134,0.40876,2447.3,2447.2,0.40876]
[1730810499430,0.40877,2447.2,2447.1,0.40878]
[1730810500537,0.40878,2447.1,2447.0,0.83699]
[1730810500834,3.61658,2447.2,2447.1,0.40878]
[1730810501333,3.2078,2447.2,2447.1,0.40878]
[1730810501530,3.61657,2447.2,2447.1,0.40878]
[1730810502337,3.2078,2447.2,2447.1,0.40878]
[1730810503237,0.40874,2447.4,2447.0,2.98105727]
[1730810503429,0.40874,2447.4,2447.3,0.40875]
[1730810504834,44.0078,2447.6,2447.2,0.4428]
[1730810505035,0.40875,2447.4,2447.3,0.40875]
[1730810505436,0.40875,2447.3,2447.2,0.4428]
[1730810505633,1.77725,2447.3,2447.2,0.4428]
[1730810505930,0.40878,2447.1,2447.0,0.837]
[1730810506330,0.40878,2447.1,2446.8,0.9028]
[1730810506331,0.40882,2446.9,2446.8,0.85162]
[1730810506535,0.40882,2446.9,2446.8,1.27982]
[1730810506739,3.61658,2447.2,2446.9,0.40882]
[1730810506928,0.40879,2447.1,2447.0,0.40879]
[1730810507130,3.61658,2447.2,2447.1,0.40878]
[1730810507327,3.2078,2447.2,2446.9,0.4569]
[1730810507528,3.61658,2447.2,2447.1,0.40878]
[1730810507836,3.61657,2447.2,2447.1,0.40878]
[1730810508833,3.2078,2447.2,2446.9,0.4569]
[1730810509038,3.61657,2447.2,2447.1,0.40878]
[1730810509737,0.40877,2447.2,2447.1,0.40878]
[1730810509937,0.9055,2447.3,2446.9,0.4569]
[1730810510139,0.40877,2447.2,2447.1,0.40878]
[1730810510542,1.31426,2447.3,2447.2,0.40877]
[1730810511043,3.6686,2447.4,2447.0,1.02201]
[1730810511044,3.2078,2447.4,2447.0,1.02201]
[1730810511232,3.2078,2447.4,2447.3,0.40875]
[1730810511633,3.61653,2447.4,2447.3,0.40875]
[1730810511943,3.2078,2447.4,2447.3,0.40875]
[1730810512137,0.9096,2447.6,2447.5,0.40872]
[1730810512339,3.6165,2447.7,2447.6,0.4087]
[1730810512641,0.40871,2447.6,2447.5,0.40871]
[1730810513236,0.40871,2447.6,2447.4,0.4652]
[1730810513544,0.40872,2447.5,2447.4,0.4652]
[1730810513738,0.40875,2447.4,2447.3,0.40875]
[1730810514035,1.75595,2447.4,2447.3,0.40875]
[1730810516536,4.22953,2447.7,2447.2,0.4347]
[1730810516537,0.40872,2447.5,2447.4,0.40873]
[1730810516942,0.40872,2447.6,2447.5,0.4087]
[1730810517338,4.49432,2447.6,2447.5,0.4087]
[1730810518745,0.40872,2447.6,2447.5,0.4087]
[1730810521051,0.40872,2447.5,2447.4,0.84623]
[1730810521241,0.40874,2447.4,2447.3,0.40874]
[1730810521545,1.79533,2447.4,2447.3,0.40874]
[1730810521742,1.3866,2447.4,2447.3,0.40874]
[1730810521941,0.9222,2447.4,2447.3,0.40874]
[1730810522239,0.87533,2447.4,2447.3,0.40874]
[1730810522643,0.40875,2447.3,2447.2,0.83437]
[1730810522944,0.86955,2447.3,2447.2,0.83437]
[1730810523542,0.4608,2447.3,2446.9,0.458]
[1730810523849,0.4088,2447.1,2447.0,0.40878]
[1730810524242,0.4347,2447.2,2446.9,0.4528]
[1730810524548,0.4088,2447.1,2447.0,0.40879]
[1730810524749,0.4088,2447.0,2446.9,0.8616]
[1730810525338,0.4347,2447.2,2446.9,0.4528]
[1730810525547,3.61659,2447.1,2447.0,0.4088]
[1730810525947,0.4347,2447.2,2447.1,0.40878]
[1730810526155,0.84347,2447.2,2447.1,0.40878]
[1730810526343,0.4347,2447.2,2447.1,0.40878]
[1730810526948,0.84347,2447.2,2447.0,0.87479]
[1730810527148,0.84347,2447.2,2447.1,0.40878]
[1730810527345,0.4347,2447.2,2447.0,0.466]
[1730810527547,0.84348,2447.2,2447.1,0.40878]
[1730810528145,0.4347,2447.2,2447.1,0.40878]
[1730810528340,0.84347,2447.2,2447.1,0.40878]
[1730810528947,0.4347,2447.2,2447.1,0.40878]
[1730810529252,0.84347,2447.2,2447.1,0.40878]
[1730810532356,0.4347,2447.2,2447.1,0.40878]
[1730810533253,0.84347,2447.2,2447.1,0.40878]
[1730810534658,0.4347,2447.2,2447.1,0.40878]
[1730810534855,0.84347,2447.2,2447.1,0.40878]
[1730810536255,0.4088,2447.1,2447.0,0.4088]
[1730810536560,0.84348,2447.2,2447.1,0.40878]
[1730810537253,0.40879,2447.1,2447.0,0.40879]
[1730810537558,0.40879,2447.1,2447.0,1.58682482]
[1730810537953,0.4347,2447.2,2447.1,0.40878]
[1730810538461,0.84347,2447.2,2447.1,0.40878]
[1730810538655,0.4347,2447.2,2447.1,0.40878]
[1730810539552,4.07736,2447.3,2447.2,0.40877]
[1730810539961,0.86956,2447.3,2447.2,0.40877]
[1730810540153,0.86956,2447.3,2447.2,0.84407]
[1730810541460,0.86956,2447.3,2447.2,0.4353]
[1730810542760,0.86956,2447.3,2447.2,0.84407]
[1730810542960,0.86956,2447.3,2447.2,0.4353]
[1730810543163,0.86956,2447.3,2447.2,0.84407]
[1730810543964,0.40876,2447.3,2447.2,0.84407]
[1730810544861,0.40875,2447.3,2447.2,0.84405]
[1730810545261,0.40875,2447.3,2447.2,0.4353]
[1730810548555,0.40875,2447.3,2447.2,0.84407]
[1730810548756,7.41773086,2447.4,2447.2,0.4353]
[1730810549166,0.40875,2447.3,2447.2,0.4353]
[1730810549369,0.40875,2447.3,2447.2,0.84407]
[1730810550867,0.40875,2447.3,2447.2,0.4353]
[1730810551369,0.40875,2447.3,2447.2,0.84407]
[1730810552476,0.40875,2447.3,2447.2,0.4353]
[1730810552666,0.40875,2447.3,2447.2,0.84407]
[1730810553168,0.40875,2447.3,2447.2,0.4353]
[1730810553371,3.6744,2447.4,2447.1,0.40878]
[1730810553372,0.40877,2447.2,2447.1,0.40878]
[1730810553567,0.83557,2447.2,2447.1,0.40878]
[1730810555671,0.40877,2447.2,2447.1,0.40878]
[1730810555874,0.40876,2447.3,2447.2,0.40875]
[1730810556169,4.50835,2447.4,2447.3,0.40875]
[1730810556376,3.6744,2447.4,2447.3,0.40875]
[1730810556572,3.6744,2447.4,2447.3,1.58678482]
[1730810556768,4.08313,2447.4,2447.3,1.58678482]
[1730810556971,3.6744,2447.4,2447.3,1.58678482]
[1730810557374,3.2078,2447.4,2447.3,1.58678482]
[1730810557574,3.2078,2447.4,2447.3,2.04388482]
[1730810558171,3.61653,2447.4,2447.3,2.04388482]
[1730810558677,3.61653,2447.4,2447.3,0.86585]
[1730810559277,3.2078,2447.4,2447.3,0.86585]
[1730810559481,3.61653,2447.4,2447.3,0.86585]
[1730810562982,0.40873,2447.4,2447.3,0.86585]
[1730810563174,3.61653,2447.4,2447.3,0.86585]
[1730810563681,3.61653,2447.4,2447.3,0.40875]
[1730810564581,3.61653,2447.4,2447.3,0.647069]
[1730810564777,3.61653,2447.4,2447.3,0.40875]
[1730810565079,3.61653,2447.4,2447.2,0.4459]
[1730810565080,0.40877,2447.2,2447.1,1.58679482]
[1730810565279,0.40877,2447.2,2447.1,0.40876]
[1730810568283,4.07010964,2447.3,2447.2,0.40877]
[1730810568485,4.07010964,2447.3,2447.2,2.65091989]
[1730810569485,4.59689086,2447.3,2447.2,2.65091989]
[1730810570178,4.59689086,2447.3,2447.2,3.27394815]
[1730810570385,4.59689086,2447.3,2447.2,2.65380628]
[1730810571775,4.18813086,2447.3,2447.2,2.65380628]
[1730810572276,6.95113086,2447.4,2447.3,0.40875]
[1730810572478,6.95113086,2447.4,2447.3,1.27220256]
[1730810572985,6.95113086,2447.4,2447.3,1.74010256]
[1730810572986,7.35986086,2447.4,2447.3,1.74010256]
[1730810573587,7.35986086,2447.4,2447.3,1.66213138]
[1730810573781,7.35986086,2447.4,2447.3,1.43230869]
[1730810574097,7.35986086,2447.4,2447.3,1.4985037]
[1730810574281,7.35986086,2447.4,2447.3,1.9072537]
[1730810574471,7.35986086,2447.4,2447.3,1.4985037]
[1730810574680,7.35986086,2447.4,2447.3,1.9072537]
[1730810575083,7.35986086,2447.4,2447.3,2.29717772]
[1730810575383,7.35986086,2447.4,2447.3,2.88234252]
[1730810575589,7.35986086,2447.4,2447.3,1.4985037]
[1730810576380,7.35986086,2447.4,2447.3,1.9072537]
[1730810576581,7.35986086,2447.4,2447.3,3.04750568]
[1730810576782,7.35986086,2447.4,2447.3,1.25484179]
[1730810576981,7.35986086,2447.4,2447.3,1.66359179]
[1730810577281,7.35986086,2447.4,2447.3,0.86490647]
[1730810577485,7.35986086,2447.4,2447.3,1.89496043]
[1730810577681,7.35986086,2447.4,2447.3,1.66371947]
[1730810577886,7.35986086,2447.4,2447.3,2.65778394]
[1730810579187,6.95113086,2447.4,2447.3,2.65778394]
[1730810579779,6.95113086,2447.4,2447.3,1.66371947]
[1730810580881,6.95113086,2447.4,2447.3,1.04240685]
[1730810581081,6.95113086,2447.4,2447.3,2.65770973]
[1730810581288,6.95113086,2447.4,2447.3,1.66367533]
[1730810581680,6.95113086,2447.4,2447.3,2.65769847]
[1730810581885,3.2078,2447.4,2447.3,2.65769847]
[1730810583882,3.2078,2447.4,2447.3,2.03627919]
[1730810584087,3.2078,2447.4,2447.3,2.65747255]
[1730810584389,3.2078,2447.4,2447.3,2.03629694]
[1730810584595,3.2078,2447.4,2447.3,2.65749754]
[1730810585091,6.42579744,2447.4,2447.3,2.65749754]
[1730810585484,6.83452744,2447.4,2447.3,2.65749754]
[1730810585791,6.42579744,2447.4,2447.3,2.65749754]
[1730810587686,6.42579744,2447.4,2447.3,2.65734438]
[1730810588388,6.42579744,2447.4,2447.3,3.8353792]
[1730810588783,3.21799744,2447.4,2447.3,3.8353792]
[1730810588994,3.21799744,2447.4,2447.3,5.077451]
[1730810589191,3.21799744,2447.5,2447.4,0.40873]
[1730810589396,3.21799744,2447.5,2447.4,3.10742438]
[1730810590488,3.21799744,2447.5,2447.4,1.49230282]
[1730810590790,3.21799744,2447.5,2447.4,3.10643799]
[1730810591196,3.21799744,2447.5,2447.4,2.47296517]
[1730810591400,3.21799744,2447.5,2447.4,3.10622482]
[1730810591691,5.23467926,2448.0,2447.8,0.40867]
[1730810591892,0.84383,2448.0,2447.9,0.24353835]
[1730810592095,0.8583,2448.0,2447.6,0.40869]
[1730810592298,0.40868,2447.8,2447.7,0.86393908]
[1730810592693,0.40868,2447.8,2447.7,1.27261908]
[1730810592893,4.16151147,2447.9,2447.8,0.40867]
[1730810593093,4.16151147,2447.9,2447.8,0.24343195]
[1730810593297,4.16149147,2447.9,2447.8,0.86376685]
[1730810593597,4.16149147,2447.9,2447.8,0.24343195]
[1730810594095,4.16149147,2447.9,2447.8,0.86377076]
[1730810594396,5.01979147,2448.0,2447.8,0.40867]
[1730810594698,0.40865,2447.9,2447.7,1.58670482]
[1730810594898,0.40865,2447.9,2447.8,0.24327323]
[1730810595199,0.40865,2447.9,2447.8,0.4865889]
[1730810596805,0.40868,2447.7,2447.6,0.4087]
[1730810597106,0.40868,2447.7,2447.6,1.02874576]
[1730810597404,0.40868,2447.7,2447.6,1.27199299]
[1730810597803,0.40868,2447.7,2447.6,0.86329299]
[1730810598295,0.84288,2447.7,2447.6,1.27199299]
[1730810598496,0.84288,2447.7,2447.6,1.27187003]
[1730810598704,0.84288,2447.7,2447.6,0.86317003]
[1730810598903,4.18804147,2448.0,2447.6,2.04120485]
[1730810599200,0.40867,2447.8,2447.7,0.86317003]
[1730810599405,0.40867,2447.8,2447.7,0.24321135]
[1730810599607,0.40868,2447.7,2447.6,1.58673482]
[1730810599802,0.40868,2447.7,2447.6,2.44986221]
[1730810600212,0.40868,2447.8,2447.7,0.40868]
[1730810600412,0.40868,2447.8,2447.7,1.27166453]
[1730810600607,0.40867,2447.8,2447.7,1.27167453]
[1730810600803,3.61647,2447.8,2447.7,1.27167453]
[1730810601607,3.61647,2447.8,2447.7,0.40868]
[1730810601909,0.4087,2447.7,2447.6,0.4087]
[1730810602110,0.4087,2447.7,2447.6,1.27174695]
[1730810602698,3.61648,2447.8,2447.7,0.40868]
[1730810603310,3.2078,2447.8,2447.4,2.64997482]
[1730810603497,0.40869,2447.7,2447.6,0.40869]
[1730810603702,3.2078,2447.8,2447.6,0.86289866]
[1730810603903,3.61648,2447.8,2447.7,0.40868]
[1730810604711,3.2078,2447.8,2447.7,0.40868]
[1730810604913,3.2078,2447.8,2447.7,2.88213612]
[1730810606512,0.4599,2448.0,2447.7,2.47345612]
[1730810606713,0.86854,2448.0,2447.9,0.40865]
[1730810606909,0.4599,2448.0,2447.9,0.40865]
[1730810607113,4.5447,2448.0,2447.9,0.40865]
[1730810607415,0.4599,2448.0,2447.9,0.40865]
[1730810608429,6.41963338,2448.1,2448.0,0.40863]
[1730810609122,6.82825338,2448.1,2448.0,0.40863]
[1730810609822,3.2078,2448.1,2448.0,0.40863]
[1730810610026,3.61642,2448.1,2448.0,0.40863]
[1730810610529,0.40863,2448.0,2447.9,0.86894]
[1730810610924,0.40863,2448.0,2447.9,0.4603]
[1730810611126,0.40863,2448.0,2447.9,0.86895]
[1730810611319,3.2078,2448.1,2448.0,0.40863]
[1730810611320,3.61643,2448.1,2448.0,0.40863]
[1730810611727,3.2078,2448.1,2447.9,0.4603]
[1730810611931,3.61643,2448.1,2448.0,0.40863]
[1730810612120,0.40863,2448.0,2447.9,0.4603]
[1730810612325,3.61642,2448.1,2448.0,0.40863]
[1730810613231,3.2078,2448.1,2448.0,1.58666482]
[1730810613425,0.4606,2448.3,2448.0,1.58666482]
[1730810613628,0.86919,2448.3,2448.2,0.4086]
[1730810614135,0.4606,2448.3,2447.9,0.4603]
[1730810614337,1.58665482,2448.1,2448.0,0.2428034]
[1730810614537,0.4608,2448.2,2447.7,4.0975]
[1730810614736,0.40866,2447.9,2447.8,2.44859996]
[1730810614932,2.35606964,2447.9,2447.2,1.06726266]
[1730810615129,2.35606964,2447.9,2447.0,0.4571]
[1730810615130,3.2078,2447.3,2447.0,0.4571]
[1730810615431,42.86733482,2447.2,2447.0,0.4571]
[1730810615633,41.6893,2447.2,2447.0,0.4571]
[1730810615833,1.29808,2447.2,2447.0,0.4571]
[1730810616030,0.8893,2447.2,2447.0,0.4571]
[1730810616232,0.8893,2447.2,2446.9,1.17803482]
[1730810616438,1.29808,2447.2,2446.9,1.63553482]
[1730810616735,0.40879,2447.1,2446.9,1.63553482]
[1730810616938,0.8893,2447.2,2446.9,1.63553482]
[1730810617341,0.40879,2447.1,2446.9,1.63553482]
[1730810617535,0.40879,2447.1,2446.9,0.4575]
[1730810618133,0.8893,2447.2,2446.9,0.4575]
[1730810618331,0.40879,2447.1,2446.9,0.4575]
[1730810619234,0.8893,2447.2,2446.9,0.4575]
[1730810619235,0.4088,2447.0,2446.9,0.4575]
[1730810619537,0.4088,2447.1,2446.9,0.4575]
[1730810620435,0.4088,2447.0,2446.9,0.4575]
[1730810621738,0.4088,2447.0,2444.2,6.77309926]
[1730810621937,3.2078,2445.9,2445.6,0.435]
[1730810622446,3.2078,2445.9,2445.7,1.63713482]
[1730810622738,3.2078,2445.9,2445.7,2.04614482]
[1730810622935,3.61679,2445.9,2445.7,1.63713482]
[1730810623140,3.2078,2445.9,2445.7,1.63713482]
[1730810623340,3.61679,2445.9,2445.7,0.86812]
[1730810623534,3.61679,2445.9,2445.7,0.4591]
[1730810623737,3.2078,2445.9,2445.7,0.4591]
[1730810623936,3.6168,2445.9,2445.7,0.4591]
[1730810624144,0.409,2445.8,2445.7,0.4591]
[1730810624736,0.409,2445.8,2445.7,4.5479]
[1730810625037,0.409,2445.8,2445.7,0.4591]
[1730810625743,0.409,2445.8,2445.7,4.5479]
[1730810625937,0.409,2445.8,2445.7,4.95692]
[1730810626336,0.409,2445.8,2445.7,4.5479]
[1730810626945,0.409,2445.8,2445.7,0.4591]
[1730810627640,0.40902,2445.7,2445.6,0.435]
[1730810629847,4.0888,2445.7,2444.7,5.21675]
[1730810630047,4.0888,2445.7,2445.1,0.8675]
[1730810630048,3.6169,2445.3,2445.1,0.8675]
[1730810630341,0.4091,2445.2,2445.1,0.4584]
[1730810631145,3.2078,2445.3,2445.1,0.4584]
[1730810631647,0.4091,2445.2,2445.1,0.4584]
[1730810631947,0.4091,2445.2,2445.1,0.86752]
[1730810632148,3.2078,2445.3,2445.2,0.4091]
[1730810633345,3.61689,2445.3,2445.2,0.4091]
[1730810633650,0.4091,2445.2,2445.1,0.86751]
[1730810634151,0.4091,2445.2,2445.1,0.86752]
[1730810634360,0.4091,2445.2,2445.1,0.86751]
[1730810634552,3.61689,2445.3,2445.2,0.4091]
[1730810634939,0.4091,2445.2,2445.1,0.86751]
[1730810635244,0.4091,2445.2,2444.9,0.893]
[1730810635245,3.2078,2445.3,2445.0,0.40913]
[1730810635446,3.2078,2445.3,2444.9,0.4527]
[1730810635447,0.40914,2445.0,2444.9,0.4527]
[1730810635643,3.61694,2445.0,2444.9,0.4527]
[1730810636455,0.4092,2444.7,2444.6,0.4092]
[1730810636658,0.40918,2444.8,2444.7,0.40918]
[1730810637043,0.40919,2444.7,2444.6,0.40919]
[1730810637452,0.40919,2444.7,2444.5,1.91434316]
[1730810637453,3.2078,2444.7,2444.5,1.91434316]
[1730810637650,0.4092,2444.6,2444.5,2.32355316]
[1730810638457,0.4092,2444.6,2444.5,1.87875316]
[1730810638659,3.2078,2444.7,2444.2,0.8915]
[1730810638865,0.40923,2444.5,2444.4,0.40922]
[1730810639156,1.29742,2444.6,2444.5,0.40922]
[1730810639348,0.8882,2444.6,2444.2,0.8915]
[1730810639654,3.2078,2444.4,2444.2,0.8915]
[1730810639854,0.40925,2444.3,2444.2,1.30075]
[1730810640156,3.61705,2444.4,2444.3,0.40925]
[1730810641356,0.40925,2444.3,2444.2,1.30076]
[1730810641951,3.2078,2444.4,2443.9,4.46981796]
[1730810642151,0.40926,2444.3,2444.2,0.40925]
[1730810642458,3.2078,2444.4,2444.3,0.40925]
[1730810642459,3.61704,2444.4,2444.3,0.40925]
[1730810643253,3.2078,2444.4,2444.3,0.40925]
[1730810644563,3.2078,2444.7,2444.6,0.4092]
[1730810645258,3.2078,2444.7,2444.6,4.4996]
[1730810646860,3.2078,2445.0,2444.9,0.40915]
[1730810647062,0.4091,2445.3,2445.2,0.4091]
[1730810647063,3.2078,2445.3,2445.2,0.4091]
[1730810647460,3.61689,2445.3,2445.2,0.4091]
[1730810648462,3.2078,2445.3,2445.2,0.4091]
[1730810649278,3.61689,2445.3,2445.2,0.4091]
[1730810649575,3.2078,2445.3,2445.2,0.4091]
[1730810650876,3.2078,2445.3,2445.2,4.4987]
[1730810651076,0.4382,2445.5,2445.4,0.40907]
[1730810652173,0.84725,2445.5,2445.4,0.40907]
[1730810652676,0.4382,2445.5,2445.4,0.40907]
[1730810655878,0.84725,2445.5,2445.4,0.40907]
[1730810657479,0.40909,2445.3,2445.2,0.40909]
[1730810657781,3.61689,2445.3,2445.2,0.40909]
[1730810658371,7.2974,2445.3,2445.2,0.40909]
[1730810658969,7.70649,2445.3,2445.2,0.40909]
[1730810659372,0.40912,2445.2,2445.1,0.40911]
[1730810659583,1.30912,2445.2,2445.1,0.40911]
[1730810659778,0.40913,2445.1,2445.0,0.40912]
[1730810660184,0.40912,2445.1,2444.9,0.4603]
[1730810660390,3.2078,2445.0,2444.9,0.86945]
[1730810660884,3.2078,2445.0,2444.9,0.40915]
[1730810661079,3.6585,2445.0,2444.9,0.40915]
[1730810663195,3.6585,2445.0,2444.9,0.98938309]
[1730810663874,3.6585,2445.0,2444.9,0.98938626]
[1730810664289,3.6585,2445.0,2444.9,1.22815658]
[1730810664477,0.4507,2445.0,2444.9,1.22850633]
[1730810664682,3.6585,2445.0,2444.9,1.22850633]
[1730810666287,3.6585,2445.0,2444.9,2.54151615]
[1730810667181,4.06764,2445.0,2444.9,3.70562483]
[1730810667486,3.6585,2445.0,2444.9,3.70562483]
[1730810667784,3.6585,2445.0,2444.9,3.70661863]
[1730810667989,3.6585,2445.0,2444.9,0.40915]
[1730810668186,3.6585,2445.0,2444.9,3.7090403]
[1730810668389,3.6585,2445.0,2444.9,2.54493041]
[1730810669189,4.06764,2445.0,2444.9,2.54493041]
[1730810669689,3.6585,2445.0,2444.9,2.54493041]
[1730810671789,4.06764,2445.0,2444.9,2.54493041]
[1730810671985,4.06764,2445.0,2444.9,1.92357063]
[1730810672185,4.06764,2445.0,2444.9,1.61448755]
[1730810672888,3.6585,2445.0,2444.9,1.61448755]
[1730810673286,3.6585,2445.0,2444.9,1.23116139]
[1730810673688,3.2078,2445.0,2444.9,1.23116139]
[1730810674088,3.2078,2445.0,2444.9,1.61456048]
[1730810675791,3.2078,2445.0,2444.9,1.23116139]
[1730810676295,3.61694,2445.0,2444.9,1.23116139]
[1730810676585,3.61694,2445.0,2444.9,0.64869192]
[1730810676787,3.2078,2445.0,2444.9,0.64869192]
[1730810677191,3.61694,2445.0,2444.9,0.64869192]
[1730810677393,3.2078,2445.0,2444.9,0.64869192]
[1730810678790,3.2078,2445.0,2444.9,0.40915]
[1730810679092,3.2078,2445.0,2444.9,0.64882257]
[1730810682601,3.2078,2445.0,2444.9,0.64885836]
[1730810682790,3.2078,2445.0,2444.9,0.64886126]
[1730810685390,2.64845503,2445.2,2445.1,0.40912]
[1730810685596,6.31945503,2445.3,2445.2,0.4091]
[1730810685892,5.85625503,2445.3,2445.2,0.8656]
[1730810686400,6.26534503,2445.3,2445.2,1.10531815]
[1730810686799,6.26534503,2445.3,2445.2,0.8656]
[1730810686995,3.61689,2445.3,2445.2,0.4091]
[1730810687694,5.88669771,2445.3,2445.2,0.64886502]
[1730810688292,3.61689,2445.3,2445.2,0.64886502]
[1730810688694,3.61689,2445.3,2445.2,0.4091]
[1730810688891,3.61689,2445.3,2445.2,0.64892896]
[1730810689103,0.40909,2445.3,2445.2,0.64892896]
[1730810689497,3.2078,2445.3,2445.2,0.64892896]
[1730810689697,3.2078,2445.3,2445.2,0.64900224]
[1730810690195,3.2078,2445.3,2445.2,1.61661275]
[1730810693303,3.2078,2445.3,2445.2,1.61678588]
[1730810693999,3.2078,2445.3,2445.2,1.61679173]
[1730810695398,2.68161167,2445.3,2445.2,6.64019371]
[1730810695598,2.68161167,2445.3,2445.2,6.64012852]
[1730810695800,2.68161167,2445.4,2445.3,0.40909]
[1730810696003,2.68161167,2445.6,2445.3,9.57550939]
[1730810696201,2.68161167,2445.7,2445.4,3.04832852]
[1730810696400,2.68161167,2445.7,2445.6,0.40904]
[1730810696699,2.68161167,2445.7,2445.6,1.61666654]
[1730810696902,2.68161167,2445.8,2445.6,4.71281615]
[1730810697105,2.68161167,2445.8,2445.7,1.03303615]
[1730810697401,5.88941167,2445.9,2445.8,0.409]
[1730810697599,5.88941167,2445.9,2445.8,2.08291301]
[1730810697992,3.2078,2445.9,2445.8,2.08291301]
[1730810698193,3.2078,2445.9,2445.8,1.49971615]
[1730810698502,3.2078,2445.9,2445.8,1.50249871]
[1730810699204,3.2078,2445.9,2445.8,5.59116326]
[1730810699397,3.2078,2445.9,2445.8,8.72741085]
[1730810699602,3.2078,2445.9,2445.8,6.1735905]
[1730810700509,3.2078,2445.9,2445.8,4.9645]
[1730810700805,3.2078,2445.9,2445.8,5.59108639]
[1730810701011,3.2078,2445.9,2445.8,6.17349958]
[1730810701505,3.2078,2445.9,2445.8,5.59108639]
[1730810701709,3.2078,2445.9,2445.8,6.17342695]
[1730810701902,3.2078,2445.9,2445.8,5.59108639]
[1730810702302,3.2078,2445.9,2445.8,0.6499719]
[1730810702806,4.0552,2445.9,2445.8,0.6499719]
[1730810703006,4.46419,2445.9,2445.8,0.6499719]
[1730810703308,4.46419,2445.9,2445.8,0.409]
[1730810703309,4.0552,2445.9,2445.8,0.409]
[1730810703810,4.0552,2445.9,2445.5,1.48282]
[1730810704107,0.4274,2445.8,2445.7,0.409]
[1730810704305,0.8364,2445.8,2445.7,0.409]
[1730810704503,0.40905,2445.6,2445.5,0.40904]
[1730810704694,7.07002035,2445.8,2445.6,0.40902]
[1730810704695,0.40903,2445.7,2445.6,0.40902]
[1730810704894,3.09064167,2445.7,2445.6,0.40902]
[1730810705295,3.09064167,2445.7,2445.4,0.4506]
[1730810705296,2.68161167,2445.7,2445.4,0.4506]
[1730810705504,0.40905,2445.6,2445.5,0.40904]
[1730810706109,3.09065167,2445.7,2445.6,0.40904]
[1730810706309,0.40904,2445.7,2445.6,0.40904]
[1730810707802,0.40903,2445.7,2445.6,0.40902]
[1730810708002,0.40905,2445.6,2445.5,0.40904]
[1730810708201,0.40905,2445.6,2445.4,0.4506]
[1730810708202,0.40905,2445.5,2445.4,0.40906]
[1730810708406,0.87555,2445.5,2445.4,0.40906]
[1730810708911,0.4665,2445.5,2445.0,0.8999]
[1730810709106,3.2078,2445.3,2445.2,0.40909]
[1730810709513,3.61689,2445.3,2445.2,0.40909]
[1730810711516,3.2078,2445.3,2445.2,0.40909]
[1730810711715,3.2078,2445.3,2445.2,0.65014847]
[1730810714018,3.2078,2445.3,2445.2,0.24105847]
[1730810714205,0.40912,2445.2,2445.1,0.40911]
[1730810714708,0.40914,2445.1,2445.0,0.40913]
[1730810714915,0.83914,2445.1,2445.0,0.40913]
[1730810716412,0.83914,2445.1,2444.8,0.4275]
[1730810716712,2.96299035,2444.9,2444.8,0.40915]
[1730810716907,0.40918,2444.8,2444.7,0.40918]
[1730810719319,2.68161167,2444.9,2444.5,0.4092]
[1730810719320,0.40919,2444.7,2444.5,0.4092]
[1730810719519,3.617,2444.6,2444.5,0.4092]
[1730810719719,3.2078,2444.6,2444.5,0.4092]
[1730810720022,3.617,2444.6,2444.5,0.4092]
[1730810720332,3.2078,2444.6,2444.5,0.4092]
[1730810720820,3.617,2444.6,2444.5,0.4092]
[1730810721928,3.2078,2444.6,2444.5,0.4092]
[1730810723620,3.617,2444.6,2444.5,0.4092]
[1730810724825,0.4092,2444.6,2444.5,0.4092]
[1730810725026,3.617,2444.6,2444.5,0.40922]
[1730810725726,3.2078,2444.6,2444.5,0.40922]
[1730810725926,3.617,2444.6,2444.5,0.40922]
[1730810726633,4.0723,2444.6,2444.5,0.40922]
[1730810727121,3.6631,2444.6,2444.4,0.4348]
[1730810727325,3.6631,2444.6,2444.4,0.40923]
[1730810727326,0.40922,2444.5,2444.4,0.40923]
[1730810728121,4.50042,2444.5,2444.1,0.23252013]
[1730810728322,3.2078,2444.3,2444.2,0.40925]
[1730810728922,3.61705,2444.3,2444.2,0.40925]
[1730810729524,4.04845,2444.3,2444.2,0.40925]
[1730810729721,4.04845,2444.3,2444.1,0.4601]
[1730810729722,7.7304,2444.3,2444.1,0.4601]
[1730810729919,7.7304,2444.3,2444.1,0.86937]
[1730810729920,0.85087,2444.2,2444.1,0.86937]
[1730810734122,0.85087,2444.2,2444.1,0.40927]
[1730810736326,3.2078,2444.3,2444.0,2.55382035]
[1730810736529,3.2078,2444.3,2444.2,0.40927]
[1730810736927,3.2078,2444.3,2444.2,5.40167]
[1730810738235,3.2078,2444.3,2444.2,1.31047]